[Event "Titled Tuesday Blitz October 5 2021"]
[White "Przybylski, Wojciech"]
[Black "Gallo Garcia, Kemel Antonio"]
[WhiteFideId "1117599"]
[BlackFideId "3523896"]
[WhiteElo "2247"]
[BlackElo "2511"]
[Result "1/2-1/2"]
[Round "07"]
[TimeControl "180+1"]
[Date "2021.10.05"]
[WhiteClock "0:00:08"]
[BlackClock "0:00:06"]

1. d4 {[%clk 0:03:00]}  Nf6 {[%clk 0:03:00]} 2. c4 {[%clk 0:02:55]}  g6 {[%clk 0:03:00]} 3. Nc3 {[%clk 0:02:52]}  d5 {[%clk 0:03:00]} 4. Nf3 {[%clk 0:02:49]}  Bg7 {[%clk 0:03:00]} 5. Qb3 {[%clk 0:02:49]}  dxc4 {[%clk 0:03:00]} 6. Qxc4 {[%clk 0:02:49]}  O-O {[%clk 0:03:01]} 7. e4 {[%clk 0:02:48]}  Nc6 {[%clk 0:03:02]} 8. h3 {[%clk 0:02:47]}  e5 {[%clk 0:02:53]} 9. d5 {[%clk 0:02:45]}  Nd4 {[%clk 0:02:52]} 10. Bd3 {[%clk 0:02:37]}  c6 {[%clk 0:02:17]} 11. Bg5 {[%clk 0:02:32]}  cxd5 {[%clk 0:02:16]} 12. Nxd5 {[%clk 0:02:30]}  Nxf3+ {[%clk 0:01:55]} 13. gxf3 {[%clk 0:02:31]}  Be6 {[%clk 0:01:53]} 14. Qb5 {[%clk 0:02:15]}  Bxd5 {[%clk 0:01:46]} 15. exd5 {[%clk 0:02:06]}  Qxd5 {[%clk 0:01:44]} 16. Qxd5 {[%clk 0:02:00]}  Nxd5 {[%clk 0:01:45]} 17. Be4 {[%clk 0:01:57]}  Nf4 {[%clk 0:01:24]} 18. O-O-O {[%clk 0:01:45]}  Ne6 {[%clk 0:01:18]} 19. Be7 {[%clk 0:01:38]}  Rfc8+ {[%clk 0:01:09]} 20. Kb1 {[%clk 0:01:38]}  Rc7 {[%clk 0:01:02]} 21. Bd6 {[%clk 0:01:13]}  Rd7 {[%clk 0:01:02]} 22. Bb4 {[%clk 0:01:14]}  Rxd1+ {[%clk 0:01:00]} 23. Rxd1 {[%clk 0:01:13]}  Nd4 {[%clk 0:01:01]} 24. Rc1 {[%clk 0:01:06]}  Bf8 {[%clk 0:00:39]} 25. Ba5 {[%clk 0:00:56]}  Ne6 {[%clk 0:00:26]} 26. Bxb7 {[%clk 0:00:46]}  Rb8 {[%clk 0:00:26]} 27. Bd5 {[%clk 0:00:40]}  Rb5 {[%clk 0:00:15]} 28. Bxe6 {[%clk 0:00:39]}  fxe6 {[%clk 0:00:15]} 29. Bc3 {[%clk 0:00:29]}  Bd6 {[%clk 0:00:15]} 30. Re1 {[%clk 0:00:28]}  Kf7 {[%clk 0:00:14]} 31. Kc2 {[%clk 0:00:28]}  Kf6 {[%clk 0:00:14]} 32. a4 {[%clk 0:00:27]}  Rd5 {[%clk 0:00:14]} 33. b4 {[%clk 0:00:27]}  Kf5 {[%clk 0:00:14]} 34. Re4 {[%clk 0:00:26]}  g5 {[%clk 0:00:11]} 35. b5 {[%clk 0:00:24]}  h5 {[%clk 0:00:11]} 36. Rc4 {[%clk 0:00:24]}  Bc5 {[%clk 0:00:05]} 37. Be1 {[%clk 0:00:17]}  Bd4 {[%clk 0:00:05]} 38. Kb3 {[%clk 0:00:16]}  Kf4 {[%clk 0:00:05]} 39. a5 {[%clk 0:00:15]}  Kxf3 {[%clk 0:00:05]} 40. Kb4 {[%clk 0:00:11]}  g4 {[%clk 0:00:05]} 41. hxg4 {[%clk 0:00:10]}  hxg4 {[%clk 0:00:06]} 42. b6 {[%clk 0:00:08]}  axb6 {[%clk 0:00:07]} 43. a6 {[%clk 0:00:08]}  b5 {[%clk 0:00:06]} 44. Rc7 {[%clk 0:00:08]}  e4 {[%clk 0:00:05]} 45. a7 {[%clk 0:00:07]}  Bxa7 {[%clk 0:00:06]} 46. Rxa7 {[%clk 0:00:08]}  Ke2 {[%clk 0:00:06]} 47. Bc3 {[%clk 0:00:08]}  Kxf2 {[%clk 0:00:07]} 48. Rf7+ {[%clk 0:00:09]}  Rf5 {[%clk 0:00:07]} 49. Re7 {[%clk 0:00:08]}  g3 {[%clk 0:00:06]} 50. Rxe6 {[%clk 0:00:08]}  Rf4 {[%clk 0:00:07]} 51. Bd4+ {[%clk 0:00:08]}  Kf1 {[%clk 0:00:05]} 52. Be3 {[%clk 0:00:07]}  Rg4 {[%clk 0:00:04]} 53. Kc3 {[%clk 0:00:07]}  Ke2 {[%clk 0:00:04]} 54. Kd4 {[%clk 0:00:06]}  g2 {[%clk 0:00:04]} 55. Rb6 {[%clk 0:00:07]}  g1=Q {[%clk 0:00:03]} 56. Bxg1 {[%clk 0:00:07]}  Rxg1 {[%clk 0:00:03]} 57. Kxe4 {[%clk 0:00:07]}  Rg4+ {[%clk 0:00:03]} 58. Kd5 {[%clk 0:00:07]}  Rb4 {[%clk 0:00:04]} 59. Kc5 {[%clk 0:00:08]}  Rb1 {[%clk 0:00:05]} 60. Rxb5 {[%clk 0:00:08]}  Rxb5+ {[%clk 0:00:06]} 61. Kxb5 {[%clk 0:00:08]} 1/2-1/2


[Site "https://www.chess.com"]

[Event "Titled Tuesday Blitz October 5 2021"]
[White "Rasulov, Vugar"]
[Black "Tasev, Dejan"]
[WhiteFideId "13402390"]
[BlackFideId "936618"]
[WhiteElo "2560"]
[BlackElo "2253"]
[Result "1-0"]
[Round "07"]
[TimeControl "180+1"]
[Date "2021.10.05"]
[WhiteClock "0:02:31"]
[BlackClock "0:00:09"]

1. c4 {[%clk 0:03:00]}  Nf6 {[%clk 0:02:59]} 2. Nc3 {[%clk 0:03:01]}  g6 {[%clk 0:02:59]} 3. g3 {[%clk 0:03:01]}  Bg7 {[%clk 0:02:59]} 4. Bg2 {[%clk 0:03:02]}  O-O {[%clk 0:03:00]} 5. Nf3 {[%clk 0:03:03]}  b6 {[%clk 0:03:00]} 6. O-O {[%clk 0:03:03]}  Bb7 {[%clk 0:03:00]} 7. d3 {[%clk 0:03:04]}  e6 {[%clk 0:02:59]} 8. e4 {[%clk 0:03:04]}  d6 {[%clk 0:03:00]} 9. Re1 {[%clk 0:03:04]}  Nbd7 {[%clk 0:03:00]} 10. Rb1 {[%clk 0:03:04]}  a6 {[%clk 0:02:58]} 11. b4 {[%clk 0:03:04]}  Qe7 {[%clk 0:02:59]} 12. Bb2 {[%clk 0:03:04]}  Rae8 {[%clk 0:02:59]} 13. h3 {[%clk 0:03:05]}  Qd8 {[%clk 0:02:58]} 14. Qc2 {[%clk 0:03:05]}  Qa8 {[%clk 0:02:57]} 15. a4 {[%clk 0:03:05]}  h6 {[%clk 0:02:56]} 16. a5 {[%clk 0:03:05]}  bxa5 {[%clk 0:02:55]} 17. bxa5 {[%clk 0:03:06]}  g5 {[%clk 0:02:50]} 18. Ba3 {[%clk 0:03:05]}  g4 {[%clk 0:02:44]} 19. hxg4 {[%clk 0:03:03]}  Nxg4 {[%clk 0:02:45]} 20. c5 {[%clk 0:03:03]}  dxc5 {[%clk 0:02:26]} 21. Na4 {[%clk 0:03:03]}  Rd8 {[%clk 0:02:21]} 22. Bxc5 {[%clk 0:03:00]}  Nxc5 {[%clk 0:01:57]} 23. Nxc5 {[%clk 0:03:01]}  Bc6 {[%clk 0:01:53]} 24. Qe2 {[%clk 0:02:54]}  Qa7 {[%clk 0:01:36]} 25. d4 {[%clk 0:02:51]}  Bb5 {[%clk 0:01:35]} 26. Rxb5 {[%clk 0:02:47]}  axb5 {[%clk 0:01:35]} 27. e5 {[%clk 0:02:47]}  h5 {[%clk 0:01:23]} 28. a6 {[%clk 0:02:45]}  Rxd4 {[%clk 0:01:13]} 29. Nxd4 {[%clk 0:02:46]}  Qxc5 {[%clk 0:01:13]} 30. Nc6 {[%clk 0:02:46]}  b4 {[%clk 0:01:02]} 31. a7 {[%clk 0:02:46]}  Kh8 {[%clk 0:01:01]} 32. Rb1 {[%clk 0:02:45]}  Ra8 {[%clk 0:00:52]} 33. Bf3 {[%clk 0:02:45]}  Rxa7 {[%clk 0:00:48]} 34. Nxa7 {[%clk 0:02:45]}  Qxa7 {[%clk 0:00:49]} 35. Bxg4 {[%clk 0:02:45]}  hxg4 {[%clk 0:00:49]} 36. Qxg4 {[%clk 0:02:40]}  Qc5 {[%clk 0:00:48]} 37. Rxb4 {[%clk 0:02:38]}  Qxe5 {[%clk 0:00:31]} 38. Qh4+ {[%clk 0:02:36]}  Kg8 {[%clk 0:00:28]} 39. Rb8+ {[%clk 0:02:37]}  Bf8 {[%clk 0:00:29]} 40. Qd8 {[%clk 0:02:30]}  Qe1+ {[%clk 0:00:24]} 41. Kg2 {[%clk 0:02:31]}  Qe4+ {[%clk 0:00:15]} 42. Kh2 {[%clk 0:02:31]}  Qh7+ {[%clk 0:00:13]} 43. Kg1 {[%clk 0:02:32]}  Qb1+ {[%clk 0:00:09]} 44. Rxb1 {[%clk 0:02:31]} 1-0


[Site "https://www.chess.com"]

[Event "Titled Tuesday Blitz October 5 2021"]
[White "Royal, Shreyas"]
[Black "Horobetz, Graham"]
[WhiteFideId "448869"]
[BlackFideId "2047322"]
[WhiteElo "1931"]
[BlackElo "2621"]
[Result "0-1"]
[Round "07"]
[TimeControl "180+1"]
[Date "2021.10.05"]
[WhiteClock "0:00:43"]
[BlackClock "0:00:13"]

1. d4 {[%clk 0:03:00]}  d5 {[%clk 0:02:55]} 2. c4 {[%clk 0:03:00]}  c6 {[%clk 0:02:55]} 3. Nf3 {[%clk 0:02:50]}  Nf6 {[%clk 0:02:55]} 4. Nc3 {[%clk 0:02:51]}  dxc4 {[%clk 0:02:55]} 5. a4 {[%clk 0:02:51]}  Bf5 {[%clk 0:02:54]} 6. Ne5 {[%clk 0:02:51]}  Nbd7 {[%clk 0:02:48]} 7. Nxc4 {[%clk 0:02:51]}  Qc7 {[%clk 0:02:47]} 8. g3 {[%clk 0:02:51]}  e5 {[%clk 0:02:42]} 9. dxe5 {[%clk 0:02:52]}  Nxe5 {[%clk 0:02:42]} 10. Bf4 {[%clk 0:02:53]}  Nfd7 {[%clk 0:02:41]} 11. Bg2 {[%clk 0:02:52]}  Be6 {[%clk 0:02:30]} 12. Nxe5 {[%clk 0:02:49]}  Nxe5 {[%clk 0:02:29]} 13. O-O {[%clk 0:02:49]}  f6 {[%clk 0:01:53]} 14. Rc1 {[%clk 0:02:46]}  Rd8 {[%clk 0:01:42]} 15. Qc2 {[%clk 0:02:39]}  Qa5 {[%clk 0:01:22]} 16. Rfd1 {[%clk 0:02:28]}  Rxd1+ {[%clk 0:01:19]} 17. Rxd1 {[%clk 0:02:27]}  Be7 {[%clk 0:01:11]} 18. Be4 {[%clk 0:02:24]}  g6 {[%clk 0:01:04]} 19. Bh6 {[%clk 0:02:00]}  Kf7 {[%clk 0:01:04]} 20. h4 {[%clk 0:01:53]}  Ng4 {[%clk 0:00:49]} 21. Bf4 {[%clk 0:01:48]}  Qb6 {[%clk 0:00:47]} 22. e3 {[%clk 0:01:42]}  Bb3 {[%clk 0:00:43]} 23. Qe2 {[%clk 0:01:26]}  Bxd1 {[%clk 0:00:42]} 24. Qxd1 {[%clk 0:01:27]}  f5 {[%clk 0:00:33]} 25. Qd7 {[%clk 0:01:12]}  Rd8 {[%clk 0:00:23]} 26. Qc7 {[%clk 0:01:02]}  Qxc7 {[%clk 0:00:22]} 27. Bxc7 {[%clk 0:01:03]}  Rd2 {[%clk 0:00:20]} 28. Bf3 {[%clk 0:01:00]}  Rxb2 {[%clk 0:00:16]} 29. Bxg4 {[%clk 0:00:56]}  fxg4 {[%clk 0:00:17]} 30. Kf1 {[%clk 0:00:52]}  b5 {[%clk 0:00:15]} 31. axb5 {[%clk 0:00:50]}  cxb5 {[%clk 0:00:16]} 32. Nd5 {[%clk 0:00:51]}  b4 {[%clk 0:00:14]} 33. Ke1 {[%clk 0:00:50]}  b3 {[%clk 0:00:14]} 34. Be5 {[%clk 0:00:49]}  Rc2 {[%clk 0:00:14]} 35. Kd1 {[%clk 0:00:44]}  Rxf2 {[%clk 0:00:13]} 36. Bf4 {[%clk 0:00:44]}  b2 {[%clk 0:00:13]} 37. Nc3 {[%clk 0:00:45]}  Bf6 {[%clk 0:00:13]} 38. Nb1 {[%clk 0:00:45]}  a5 {[%clk 0:00:13]} 39. Bc7 {[%clk 0:00:45]}  a4 {[%clk 0:00:13]} 40. Bd6 {[%clk 0:00:45]}  Be7 {[%clk 0:00:14]} 41. Bf4 {[%clk 0:00:45]}  a3 {[%clk 0:00:14]} 42. Nxa3 {[%clk 0:00:42]}  Bxa3 {[%clk 0:00:13]} 43. Ke1 {[%clk 0:00:43]}  Rc2 {[%clk 0:00:12]} 44. Kd1 {[%clk 0:00:43]}  b1=Q# {[%clk 0:00:13]} 0-1


[Site "https://www.chess.com"]

[Event "Titled Tuesday Blitz October 5 2021"]
[White "Sanchez, Robert"]
[Black "Aggelis, Nikolaos"]
[WhiteFideId "2034360"]
[BlackFideId "4213220"]
[WhiteElo "2258"]
[BlackElo "2154"]
[Result "1-0"]
[Round "07"]
[TimeControl "180+1"]
[Date "2021.10.05"]
[WhiteClock "0:00:16"]
[BlackClock "0:01:09"]

1. e4 {[%clk 0:03:00]}  d5 {[%clk 0:02:58]} 2. exd5 {[%clk 0:02:59]}  Qxd5 {[%clk 0:02:59]} 3. Nc3 {[%clk 0:03:00]}  Qe5+ {[%clk 0:03:00]} 4. Be2 {[%clk 0:02:52]}  c6 {[%clk 0:03:00]} 5. d4 {[%clk 0:02:47]}  Qc7 {[%clk 0:03:00]} 6. Nf3 {[%clk 0:02:47]}  Bf5 {[%clk 0:03:01]} 7. Be3 {[%clk 0:02:47]}  e6 {[%clk 0:03:00]} 8. Qd2 {[%clk 0:02:47]}  Nf6 {[%clk 0:03:00]} 9. h3 {[%clk 0:02:46]}  Nbd7 {[%clk 0:03:00]} 10. a3 {[%clk 0:02:43]}  Ne4 {[%clk 0:02:59]} 11. Nxe4 {[%clk 0:02:42]}  Bxe4 {[%clk 0:03:00]} 12. c4 {[%clk 0:02:34]}  Be7 {[%clk 0:02:59]} 13. O-O {[%clk 0:02:31]}  O-O {[%clk 0:02:54]} 14. b4 {[%clk 0:02:30]}  Rad8 {[%clk 0:02:53]} 15. Bf4 {[%clk 0:02:21]}  Bd6 {[%clk 0:02:52]} 16. Bg5 {[%clk 0:02:21]}  f6 {[%clk 0:02:45]} 17. Be3 {[%clk 0:02:18]}  e5 {[%clk 0:02:43]} 18. Rfd1 {[%clk 0:02:11]}  Bxf3 {[%clk 0:02:40]} 19. Bxf3 {[%clk 0:02:11]}  exd4 {[%clk 0:02:40]} 20. Bxd4 {[%clk 0:01:57]}  Be5 {[%clk 0:02:27]} 21. Qc3 {[%clk 0:01:54]}  Bxd4 {[%clk 0:02:21]} 22. Rxd4 {[%clk 0:01:54]}  Ne5 {[%clk 0:02:21]} 23. Be2 {[%clk 0:01:52]}  c5 {[%clk 0:02:17]} 24. Rd5 {[%clk 0:01:44]}  cxb4 {[%clk 0:02:13]} 25. Qxb4 {[%clk 0:01:40]}  b6 {[%clk 0:02:03]} 26. Rad1 {[%clk 0:01:40]}  Rxd5 {[%clk 0:01:57]} 27. cxd5 {[%clk 0:01:39]}  Rd8 {[%clk 0:01:56]} 28. d6 {[%clk 0:01:37]}  Qc5 {[%clk 0:01:56]} 29. Kf1 {[%clk 0:00:43]}  Rxd6 {[%clk 0:01:51]} 30. Rxd6 {[%clk 0:00:40]}  Qc1+ {[%clk 0:01:37]} 31. Rd1 {[%clk 0:00:38]}  Qc7 {[%clk 0:01:33]} 32. f4 {[%clk 0:00:37]}  Ng6 {[%clk 0:01:25]} 33. Qc4+ {[%clk 0:00:36]}  Qxc4 {[%clk 0:01:24]} 34. Bxc4+ {[%clk 0:00:37]}  Kf8 {[%clk 0:01:24]} 35. g3 {[%clk 0:00:36]}  Ke7 {[%clk 0:01:21]} 36. Bd3 {[%clk 0:00:34]}  Nf8 {[%clk 0:01:21]} 37. Rc1 {[%clk 0:00:34]}  Kd6 {[%clk 0:01:21]} 38. Rc8 {[%clk 0:00:33]}  Ne6 {[%clk 0:01:20]} 39. Ra8 {[%clk 0:00:32]}  a5 {[%clk 0:01:18]} 40. Bxh7 {[%clk 0:00:30]}  Nc7 {[%clk 0:01:15]} 41. Rg8 {[%clk 0:00:24]}  Nb5 {[%clk 0:01:13]} 42. a4 {[%clk 0:00:22]}  Nc3 {[%clk 0:01:13]} 43. Bc2 {[%clk 0:00:20]}  b5 {[%clk 0:01:13]} 44. axb5 {[%clk 0:00:20]}  a4 {[%clk 0:01:14]} 45. Bxa4 {[%clk 0:00:19]}  Nxa4 {[%clk 0:01:14]} 46. Rxg7 {[%clk 0:00:20]}  Kc5 {[%clk 0:01:11]} 47. h4 {[%clk 0:00:20]}  Nc3 {[%clk 0:01:11]} 48. h5 {[%clk 0:00:19]}  Nd5 {[%clk 0:01:08]} 49. h6 {[%clk 0:00:19]}  Ne3+ {[%clk 0:01:08]} 50. Ke2 {[%clk 0:00:18]}  Nf5 {[%clk 0:01:09]} 51. Rg6 {[%clk 0:00:16]} 1-0


[Site "https://www.chess.com"]

[Event "Titled Tuesday Blitz October 5 2021"]
[White "Seo, Jung Min"]
[Black "Korobov, Anton"]
[WhiteFideId "1734687"]
[BlackFideId "14105730"]
[WhiteElo "2486"]
[BlackElo "2718"]
[Result "1/2-1/2"]
[Round "07"]
[TimeControl "180+1"]
[Date "2021.10.05"]
[WhiteClock "0:00:32"]
[BlackClock "0:00:23"]

1. c4 {[%clk 0:03:00]}  Nf6 {[%clk 0:02:57]} 2. d4 {[%clk 0:03:00]}  g6 {[%clk 0:02:56]} 3. Nc3 {[%clk 0:03:00]}  Bg7 {[%clk 0:02:56]} 4. Nf3 {[%clk 0:03:00]}  d6 {[%clk 0:02:56]} 5. g3 {[%clk 0:02:59]}  O-O {[%clk 0:02:55]} 6. Bg2 {[%clk 0:02:59]}  Nc6 {[%clk 0:02:55]} 7. O-O {[%clk 0:03:00]}  a6 {[%clk 0:02:55]} 8. d5 {[%clk 0:02:59]}  Na5 {[%clk 0:02:55]} 9. b3 {[%clk 0:02:55]}  b5 {[%clk 0:02:47]} 10. Bd2 {[%clk 0:02:39]}  bxc4 {[%clk 0:02:32]} 11. b4 {[%clk 0:02:38]}  Nb7 {[%clk 0:02:30]} 12. Nd4 {[%clk 0:02:37]}  e5 {[%clk 0:02:22]} 13. Nc6 {[%clk 0:02:28]}  Qe8 {[%clk 0:02:20]} 14. Rc1 {[%clk 0:02:27]}  Bd7 {[%clk 0:02:09]} 15. Bg5 {[%clk 0:02:15]}  Nd8 {[%clk 0:01:53]} 16. Nxd8 {[%clk 0:02:10]}  Rxd8 {[%clk 0:01:54]} 17. Bxf6 {[%clk 0:01:56]}  Bxf6 {[%clk 0:01:52]} 18. Ne4 {[%clk 0:01:56]}  Be7 {[%clk 0:01:42]} 19. Rxc4 {[%clk 0:01:55]}  Rc8 {[%clk 0:01:36]} 20. Qc2 {[%clk 0:01:52]}  Ba4 {[%clk 0:01:31]} 21. Qc3 {[%clk 0:01:46]}  f5 {[%clk 0:01:19]} 22. Nd2 {[%clk 0:01:42]}  Bd8 {[%clk 0:01:17]} 23. Nb3 {[%clk 0:01:35]}  Bb5 {[%clk 0:01:15]} 24. Na5 {[%clk 0:01:35]}  e4 {[%clk 0:01:09]} 25. Rc1 {[%clk 0:01:29]}  Bf6 {[%clk 0:01:09]} 26. Qb3 {[%clk 0:01:27]}  Bxc4 {[%clk 0:01:09]} 27. Qxc4 {[%clk 0:01:24]}  Qa4 {[%clk 0:01:04]} 28. e3 {[%clk 0:01:12]}  Rb8 {[%clk 0:00:40]} 29. Nc6 {[%clk 0:01:12]}  Rb6 {[%clk 0:00:40]} 30. Bf1 {[%clk 0:01:11]}  Kg7 {[%clk 0:00:39]} 31. Be2 {[%clk 0:01:09]}  Rf7 {[%clk 0:00:38]} 32. Bd1 {[%clk 0:01:06]}  Qb5 {[%clk 0:00:34]} 33. a4 {[%clk 0:01:00]}  Rxc6 {[%clk 0:00:21]} 34. dxc6 {[%clk 0:00:54]}  Qxc4 {[%clk 0:00:20]} 35. Rxc4 {[%clk 0:00:54]}  d5 {[%clk 0:00:21]} 36. Rc5 {[%clk 0:00:53]}  d4 {[%clk 0:00:22]} 37. exd4 {[%clk 0:00:51]}  Bxd4 {[%clk 0:00:23]} 38. Rd5 {[%clk 0:00:51]}  Bc3 {[%clk 0:00:22]} 39. b5 {[%clk 0:00:49]}  axb5 {[%clk 0:00:22]} 40. axb5 {[%clk 0:00:47]}  Ba5 {[%clk 0:00:21]} 41. Rd7 {[%clk 0:00:45]}  Kf6 {[%clk 0:00:20]} 42. Rxf7+ {[%clk 0:00:42]}  Kxf7 {[%clk 0:00:20]} 43. Bb3+ {[%clk 0:00:42]}  Kf6 {[%clk 0:00:20]} 44. h4 {[%clk 0:00:43]}  Bb6 {[%clk 0:00:20]} 45. Kf1 {[%clk 0:00:42]}  h6 {[%clk 0:00:21]} 46. Ke2 {[%clk 0:00:42]}  Ke5 {[%clk 0:00:21]} 47. Bf7 {[%clk 0:00:40]}  g5 {[%clk 0:00:21]} 48. hxg5 {[%clk 0:00:40]}  hxg5 {[%clk 0:00:22]} 49. Bg6 {[%clk 0:00:40]}  Kf6 {[%clk 0:00:22]} 50. Bh7 {[%clk 0:00:37]}  g4 {[%clk 0:00:23]} 51. Bg8 {[%clk 0:00:36]}  Ke5 {[%clk 0:00:23]} 52. Bh7 {[%clk 0:00:36]}  f4 {[%clk 0:00:22]} 53. gxf4+ {[%clk 0:00:36]}  Kxf4 {[%clk 0:00:23]} 54. Bg6 {[%clk 0:00:35]}  e3 {[%clk 0:00:22]} 55. fxe3+ {[%clk 0:00:34]}  Bxe3 {[%clk 0:00:23]} 56. Kf1 {[%clk 0:00:34]}  Kf3 {[%clk 0:00:21]} 57. Bf7 {[%clk 0:00:34]}  Ke4 {[%clk 0:00:21]} 58. Kg2 {[%clk 0:00:32]}  Kf4 {[%clk 0:00:22]} 59. Be6 {[%clk 0:00:32]}  Bb6 {[%clk 0:00:22]} 60. Bd7 {[%clk 0:00:32]}  g3 {[%clk 0:00:21]} 61. Be6 {[%clk 0:00:32]}  Bc5 {[%clk 0:00:21]} 62. Bd7 {[%clk 0:00:32]}  Bb6 {[%clk 0:00:22]} 63. Be6 {[%clk 0:00:32]}  Bc5 {[%clk 0:00:22]} 64. Bd7 {[%clk 0:00:32]}  Bb6 {[%clk 0:00:23]} 1/2-1/2


[Site "https://www.chess.com"]

[Event "Titled Tuesday Blitz October 5 2021"]
[White "Silich, Yahor"]
[Black "Itkis, Boris"]
[WhiteFideId "13513656"]
[BlackFideId "1209167"]
[WhiteElo "2070"]
[BlackElo "2227"]
[Result "1-0"]
[Round "07"]
[TimeControl "180+1"]
[Date "2021.10.05"]
[WhiteClock "0:01:07"]
[BlackClock "0:00:01"]

1. e4 {[%clk 0:03:00]}  e5 {[%clk 0:01:32]} 2. Nf3 {[%clk 0:02:58]}  Nc6 {[%clk 0:01:31]} 3. Bc4 {[%clk 0:02:57]}  Nf6 {[%clk 0:01:30]} 4. d3 {[%clk 0:02:58]}  h6 {[%clk 0:01:30]} 5. O-O {[%clk 0:02:58]}  d6 {[%clk 0:01:30]} 6. c3 {[%clk 0:02:57]}  g6 {[%clk 0:01:31]} 7. Nbd2 {[%clk 0:02:56]}  Bg7 {[%clk 0:01:31]} 8. Re1 {[%clk 0:02:56]}  O-O {[%clk 0:01:32]} 9. h3 {[%clk 0:02:56]}  Re8 {[%clk 0:01:31]} 10. Bb3 {[%clk 0:02:54]}  d5 {[%clk 0:01:29]} 11. Ba4 {[%clk 0:02:52]}  dxe4 {[%clk 0:01:23]} 12. dxe4 {[%clk 0:02:52]}  Bd7 {[%clk 0:01:23]} 13. Nc4 {[%clk 0:02:51]}  a6 {[%clk 0:01:17]} 14. Bc2 {[%clk 0:02:46]}  b5 {[%clk 0:01:12]} 15. Ne3 {[%clk 0:02:45]}  Be6 {[%clk 0:01:11]} 16. Qe2 {[%clk 0:02:44]}  Nh5 {[%clk 0:01:05]} 17. Rd1 {[%clk 0:02:42]}  Nf4 {[%clk 0:00:56]} 18. Qe1 {[%clk 0:02:35]}  Qf6 {[%clk 0:00:56]} 19. Nd5 {[%clk 0:02:20]}  Nxh3+ {[%clk 0:00:41]} 20. Kh2 {[%clk 0:02:20]}  Bxd5 {[%clk 0:00:35]} 21. exd5 {[%clk 0:02:21]}  e4 {[%clk 0:00:30]} 22. Bxe4 {[%clk 0:02:06]}  Ne5 {[%clk 0:00:21]} 23. Kxh3 {[%clk 0:01:53]}  Nxf3 {[%clk 0:00:20]} 24. gxf3 {[%clk 0:01:54]}  Re5 {[%clk 0:00:18]} 25. Kg2 {[%clk 0:01:45]}  Qh4 {[%clk 0:00:18]} 26. d6 {[%clk 0:01:37]}  Rae8 {[%clk 0:00:14]} 27. d7 {[%clk 0:01:35]}  Rd8 {[%clk 0:00:14]} 28. Qh1 {[%clk 0:01:31]}  Qe7 {[%clk 0:00:09]} 29. Bf4 {[%clk 0:01:30]}  Re6 {[%clk 0:00:08]} 30. Rd3 {[%clk 0:01:14]}  c6 {[%clk 0:00:05]} 31. Rad1 {[%clk 0:01:14]}  f5 {[%clk 0:00:05]} 32. Bd6 {[%clk 0:01:07]}  Qf7 {[%clk 0:00:06]} 33. Bxc6 {[%clk 0:01:07]}  Bf8 {[%clk 0:00:01]} 34. Bc7 {[%clk 0:01:07]}  Rxc6 {[%clk 0:00:01]} 35. Bxd8 {[%clk 0:01:07]} 1-0


[Site "https://www.chess.com"]

[Event "Titled Tuesday Blitz October 5 2021"]
[White "Sjugirov, Sanan"]
[Black "Martinovici, Ilia"]
[WhiteFideId "4189302"]
[BlackFideId "13907034"]
[WhiteElo "2654"]
[BlackElo "2303"]
[Result "1-0"]
[Round "07"]
[TimeControl "180+1"]
[Date "2021.10.05"]
[WhiteClock "0:00:31"]
[BlackClock "0:00:10"]

1. d4 {[%clk 0:03:00]}  d5 {[%clk 0:02:57]} 2. Nf3 {[%clk 0:03:01]}  Nf6 {[%clk 0:02:56]} 3. Bf4 {[%clk 0:03:01]}  c5 {[%clk 0:02:56]} 4. e3 {[%clk 0:03:02]}  Nc6 {[%clk 0:02:56]} 5. Nbd2 {[%clk 0:03:02]}  cxd4 {[%clk 0:02:54]} 6. exd4 {[%clk 0:03:03]}  Bg4 {[%clk 0:02:54]} 7. c3 {[%clk 0:03:02]}  e6 {[%clk 0:02:54]} 8. Qb3 {[%clk 0:03:01]}  Qb6 {[%clk 0:02:46]} 9. Qxb6 {[%clk 0:03:00]}  axb6 {[%clk 0:02:47]} 10. Bb5 {[%clk 0:02:52]}  Bxf3 {[%clk 0:02:41]} 11. Nxf3 {[%clk 0:02:51]}  Nd7 {[%clk 0:02:40]} 12. Ke2 {[%clk 0:02:50]}  Be7 {[%clk 0:02:35]} 13. Ne5 {[%clk 0:02:37]}  Ndxe5 {[%clk 0:02:33]} 14. Bxe5 {[%clk 0:02:38]}  f6 {[%clk 0:02:30]} 15. Bc7 {[%clk 0:02:34]}  Bd8 {[%clk 0:02:31]} 16. Bg3 {[%clk 0:02:33]}  Kf7 {[%clk 0:02:30]} 17. a3 {[%clk 0:02:20]}  Na5 {[%clk 0:02:24]} 18. Kd3 {[%clk 0:02:09]}  Nc6 {[%clk 0:01:57]} 19. Rhe1 {[%clk 0:01:57]}  Rc8 {[%clk 0:01:56]} 20. Re2 {[%clk 0:01:51]}  Bc7 {[%clk 0:01:54]} 21. Rae1 {[%clk 0:01:47]}  Rhe8 {[%clk 0:01:47]} 22. Bxc7 {[%clk 0:01:44]}  Rxc7 {[%clk 0:01:48]} 23. f4 {[%clk 0:01:41]}  Ree7 {[%clk 0:01:45]} 24. g4 {[%clk 0:01:36]}  g6 {[%clk 0:01:38]} 25. h4 {[%clk 0:01:36]}  Rc8 {[%clk 0:01:29]} 26. Kd2 {[%clk 0:01:21]}  Rcc7 {[%clk 0:01:20]} 27. Rh1 {[%clk 0:01:16]}  Kg7 {[%clk 0:01:05]} 28. h5 {[%clk 0:01:15]}  g5 {[%clk 0:00:58]} 29. fxg5 {[%clk 0:01:14]}  fxg5 {[%clk 0:00:58]} 30. h6+ {[%clk 0:01:14]}  Kg8 {[%clk 0:00:54]} 31. Rhe1 {[%clk 0:01:10]}  Nd8 {[%clk 0:00:52]} 32. Re5 {[%clk 0:01:05]}  Nf7 {[%clk 0:00:37]} 33. Rxe6 {[%clk 0:01:04]}  Kf8 {[%clk 0:00:37]} 34. Rxb6 {[%clk 0:00:54]}  Rxe1 {[%clk 0:00:30]} 35. Kxe1 {[%clk 0:00:55]}  Ke7 {[%clk 0:00:29]} 36. Bd3 {[%clk 0:00:50]}  Nd6 {[%clk 0:00:26]} 37. Bxh7 {[%clk 0:00:48]}  Nc4 {[%clk 0:00:24]} 38. Rg6 {[%clk 0:00:47]}  Rc8 {[%clk 0:00:19]} 39. Rg7+ {[%clk 0:00:45]}  Kf6 {[%clk 0:00:19]} 40. Rxb7 {[%clk 0:00:41]}  Re8+ {[%clk 0:00:18]} 41. Kf2 {[%clk 0:00:40]}  Nd6 {[%clk 0:00:14]} 42. Rb6 {[%clk 0:00:39]}  Ke7 {[%clk 0:00:15]} 43. Bd3 {[%clk 0:00:38]}  Rf8+ {[%clk 0:00:14]} 44. Kg3 {[%clk 0:00:38]}  Rf6 {[%clk 0:00:10]} 45. h7 {[%clk 0:00:34]}  Rh6 {[%clk 0:00:10]} 46. Rb8 {[%clk 0:00:32]}  Nf7 {[%clk 0:00:10]} 47. a4 {[%clk 0:00:31]} 1-0


[Site "https://www.chess.com"]